Workbook

Sheet LISTE DU PERSONNEL
E2: LISTE DU PERSONNEL
A3: Matricule | B3: Civilité | C3: Noms | D3: Prénoms | E3: Sexe | F3: Date de Naissance | G3: Nationalité | H3: Adresse | I3: Téléphone | J3: Statut Matrimonial | K3: Nombre d'Enfant en Charge | L3: Nombre d'Enfants Majeurs | M3: Date d'Embauche | N3: Date de Sortie | O3: Direction | P3: Service | Q3: Emploi | R3: Régime | S3: Nature Contrat | T3: Catégorie | U3: Salaire Catégoriel | V3: =#REF! ->  | W3: Nbre parts IGR | X3: Indemnités Transport | Y3: N° CNPS | Z3: Mode de de Paiement | AA3: Numéro de Compte Bancaire | AB3: BANQUE
A5: 001 | B5: M. | E5: M | F5: 22/03/1980 | G5: Ivoirienne | H5: 01ABIDJAN 01 | I5: 0 847356 | J5: Célibataire | K5: 5 | L5: 0 | M5: 2019-07-01 | Q5: Chauffeur | R5: Général | S5: CDD | T5: A2 | U5: 73480 | V5: 35228 | W5: 4 | X5: 25000 | Y5: 5236875 | Z5: Virement bancaire | AZ5: =IF(M5="","","Trim"&INT((MONTH(M5)-1)/3)+1)&"-"&YEAR(M5) -> Trim3-2019
A6: 002 | B6: M. | E6: M | F6: 1984-02-08 | G6: Ivoirienne | I6: +22540452312 | J6: Célibataire | K6: 4 | L6: 0 | M6: 01/07/2019 | Q6: Chauffeur | R6: Général | S6: CDD | T6: A2 | U6: 73480 | V6: 35228 | W6: 3,5 | X6: 25000 | Y6: 4562314 | Z6: Virement bancaire | AZ6: Trim3-2019
A7: 003 | B7: M. | E7: M | F7: 1979-01-01 | G7: Ivoirienne | I7: +22570455300 | J7: Célibataire | K7: 5 | L7: 0 | M7: 01/07/2019 | Q7: Chauffeur | R7: Général | S7: CDD | T7: A2 | U7: 73480 | V7: 35228 | W7: 4 | X7: 25000 | Y7: 123654 | Z7: Virement bancaire | AZ7: Trim3-2019
A8: 004 | B8: M. | E8: M | F8: 01/10/1961 | G8: Ivoirienne | I8: +22540451114 | J8: Célibataire | K8: 6 | L8: 0 | M8: 2019-07-01 | Q8: Chauffeur | R8: Général | S8: CDD | T8: A2 | U8: 73480 | V8: 35228 | W8: 4.5 | X8: 25000 | Y8: 789654 | Z8: Virement bancaire | AZ8: Trim3-2019
A9: 005 | B9: M. | E9: M | G9: Ivoirienne | I9: +22549457818 | J9: Célibataire | K9: 0 | L9: 0 | M9: 2019-07-01 | Q9: Chauffeur | R9: Général | S9: CDD | T9: A2 | U9: 73480 | V9: 41709 | W9: 1 | X9: 25000 | Y9: 12212145 | Z9: Virement bancaire | AZ9: Trim3-2019
A10: 006 | B10: M. | E10: M | F10: 24/04/1994 | G10: Ivoirienne | I10: +22575452377 | J10: Célibataire | K10: 1 | L10: 0 | M10: 2019-07-01 | Q10: Chauffeur | R10: Général | S10: CDD | T10: A2 | U10: 73480 | V10: 37608 | W10: 2 | X10: 25000 | Y10: 455545 | Z10: Virement bancaire | AZ10: Trim3-2019
A11: 007 | B11: M. | E11: M | F11: 1989-10-23 | G11: Ivoirienne | I11: +22545673490 | J11: Célibataire | K11: 0 | L11: 0 | M11: 2019-07-01 | Q11: Chauffeur | R11: Général | S11: CDD | T11: A2 | U11: 73480 | V11: 41709 | W11: 1 | X11: 25000 | Y11: 753159 | Z11: Virement bancaire | AZ11: Trim3-2019
A12: 008 | B12: M. | E12: M | F12: 1980-01-01 | G12: Ivoirienne | I12: +22545673490 | J12: Célibataire | K12: 5 | L12: 0 | M12: 2019-07-01 | Q12: Chauffeur | R12: Général | S12: CDD | T12: A2 | U12: 73480 | V12: 35228 | W12: 4 | X12: 25000 | Y12: 159753 | Z12: Virement bancaire | AZ12: Trim3-2019
A13: 009 | B13: M. | E13: M | F13: 1980-01-01 | G13: Ivoirienne | I13: +22545673490 | J13: Célibataire | K13: 2 | L13: 0 | M13: 2019-07-01 | Q13: Chauffeur | R13: Général | S13: CDD | T13: A2 | U13: 73480 | V13: 36276 | W13: 2.5 | X13: 25000 | Z13: Virement bancaire | AZ13: Trim3-2019
A14: 010 | B14: M. | E14: M | F14: 1978-01-01 | G14: Ivoirienne | I14: +22545673490 | J14: Célibataire | K14: 4 | L14: 0 | M14: 2019-07-01 | Q14: Chauffeur | R14: Général | S14: CDD | T14: A2 | U14: 73480 | V14: 35228 | W14: 3.5 | X14: 25000 | Z14: Virement bancaire | AZ14: Trim3-2019
A15: 011 | B15: M. | E15: M | F15: 1988-12-25 | G15: Ivoirienne | I15: +22545673490 | J15: Célibataire | K15: 3 | L15: 0 | M15: 2019-07-01 | Q15: Chauffeur | R15: Général | S15: CDD | T15: A2 | U15: 73480 | V15: 35228 | W15: 3 | X15: 25000 | Z15: Virement bancaire | AZ15: Trim3-2019
A16: 012 | B16: M. | E16: M | G16: Ivoirienne | I16: +22540452312 | J16: Célibataire | K16: 0 | L16: 0 | M16: 2019-07-01 | Q16: Chauffeur | R16: Général | S16: CDD | T16: A2 | U16: 73480 | V16: 41709 | W16: 1 | X16: 25000 | Z16: Virement bancaire | AZ16: Trim3-2019
A17: 013 | B17: M. | E17: M | F17: 1983-11-28 | G17: Ivoirienne | I17: +22570455300 | J17: Célibataire | K17: 2 | L17: 0 | M17: 2019-07-01 | Q17: Chauffeur | R17: Général | S17: CDD | T17: A2 | U17: 73480 | V17: 36276 | W17: 2.5 | X17: 25000 | Z17: Virement bancaire | AZ17: Trim3-2019
A18: 014 | B18: M. | E18: M | F18: 01/01/1992 | G18: Ivoirienne | I18: +22540451114 | J18: Célibataire | K18: 2 | L18: 0 | M18: 2019-07-01 | Q18: Chauffeur | R18: Général | S18: CDD | T18: A2 | U18: 73480 | V18: 36276 | W18: 2.5 | X18: 25000 | Z18: Virement bancaire | AZ18: Trim3-2019
A19: 015 | B19: M. | E19: M | F19: 10/01/1977 | G19: Ivoirienne | I19: +22549457818 | J19: Célibataire | K19: 3 | L19: 0 | M19: 2019-07-01 | Q19: Chauffeur | R19: Général | S19: CDD | T19: A2 | U19: 73480 | V19: 35228 | W19: 3 | X19: 25000 | Z19: Virement bancaire | AZ19: Trim3-2019
A20: 016 | B20: M. | E20: M | F20: 01/01/1974 | G20: Ivoirienne | I20: +22575452377 | J20: Célibataire | K20: 6 | L20: 0 | M20: 2019-07-01 | Q20: Chauffeur | R20: Général | S20: CDD | T20: A2 | U20: 73480 | V20: 35228 | W20: 4.5 | X20: 25000 | Z20: Virement bancaire | AZ20: Trim3-2019
A21: 017 | B21: M. | E21: M | F21: 20/12/1984 | G21: Ivoirienne | I21: +22545673490 | J21: Célibataire | K21: 2 | L21: 0 | M21: 2019-07-01 | Q21: Chauffeur | R21: Général | S21: CDD | T21: A2 | U21: 73480 | V21: 36276 | W21: 2.5 | X21: 25000 | Z21: Virement bancaire | AZ21: Trim3-2019
A22: 018 | B22: M. | E22: M | F22: 01/01/1991 | G22: Ivoirienne | I22: +22545673490 | J22: Célibataire | K22: 0 | L22: 0 | M22: 2019-07-01 | Q22: Chauffeur | R22: Général | S22: CDD | T22: A2 | U22: 73480 | V22: 41709 | W22: 1 | X22: 25000 | Z22: Virement bancaire | AZ22: Trim3-2019
A23: 019 | B23: M. | E23: M | F23: 1983-10-02 | G23: Ivoirienne | I23: 0 847356 | J23: Célibataire | K23: 1 | L23: 0 | M23: 2019-07-01 | Q23: Chauffeur | R23: Général | S23: CDD | T23: A2 | U23: 73480 | V23: 37608 | W23: 2 | X23: 25000 | Z23: Virement bancaire | AZ23: Trim3-2019
A24: 020 | B24: M. | E24: M | F24: 31/12/ 199 | G24: Ivoirienne | I24: +22540452312 | J24: Célibataire | K24: 1 | L24: 0 | M24: 2019-07-01 | Q24: Chauffeur | R24: Général | S24: CDD | T24: A2 | U24: 73480 | V24: 37608 | W24: 2 | X24: 25000 | Z24: Virement bancaire | AZ24: Trim3-2019
A25: 021 | B25: M. | E25: M | F25: 01/01/1996 | G25: Ivoirien | I25: +22570455300 | J25: Célibataire | K25: 0 | L25: 0 | M25: 2019-07-01 | P25: S&E | Q25: Chauffeur | R25: Général | S25: CDD | T25: A2 | U25: 73480 | V25: 41709 | W25: 1 | X25: 25000 | Y25: 19841081 | Z25: Virement bancaire | AA25: 521458632 | AB25: BNI | AZ25: Trim3-2019
A26: 022 | B26: M. | E26: M | F26: 25/12/1981 | I26: +22540451114 | J26: Célibataire | K26: 3 | L26: 0 | M26: 2019-07-01 | Q26: Chauffeur | R26: Général | S26: CDD | T26: A2 | U26: 73480 | V26: 35228 | W26: 3 | X26: 25000 | Z26: Virement bancaire | AZ26: Trim3-2019
A27: 023 | B27: M. | E27: M | F27: 03/06/1992 | I27: +22549457818 | J27: Célibataire | K27: 0 | L27: 0 | M27: 2019-07-01 | Q27: Chauffeur | R27: Général | S27: CDD | T27: A2 | U27: 73480 | V27: 41709 | W27: 1 | X27: 25000 | Z27: Virement bancaire | AZ27: Trim3-2019
A28: 024 | B28: M. | E28: M | F28: 19/04/1991 | I28: +22575452377 | J28: Célibataire | K28: 0 | L28: 0 | M28: 2019-07-01 | Q28: Chauffeur | R28: Général | S28: CDD | T28: A2 | U28: 73480 | V28: 41709 | W28: 1 | X28: 25000 | Z28: Virement bancaire | AZ28: Trim3-2019
A29: 025 | B29: M. | E29: M | F29: 08/05/1992 | G29: JJ | I29: +22545673490 | J29: Célibataire | K29: 1 | L29: 0 | M29: 2019-07-01 | Q29: Chauffeur | R29: Général | S29: CDD | T29: A2 | U29: 73480 | V29: 37608 | W29: 2 | X29: 25000 | Z29: Virement bancaire | AZ29: Trim3-2019
A30: 026 | B30: M. | E30: M | F30: 19/04/1981 | I30: +22545673490 | J30: Célibataire | K30: 5 | L30: 0 | M30: 2019-07-01 | Q30: Chauffeur | R30: Général | S30: CDD | T30: A2 | U30: 73480 | V30: 35228 | W30: 4 | X30: 25000 | Z30: Virement bancaire | AZ30: Trim3-2019
A31: 027 | B31: M. | E31: M | F31: 07/04/1971 | G31: Béninoise | H31: plateau | I31: +22545673490 | J31: Célibataire | K31: 7 | L31: 0 | M31: 2019-07-01 | P31: PROJET | Q31: Chauffeur | R31: Général | S31: CDD | T31: A2 | U31: 73480 | V31: 35228 | W31: 5 | X31: 25000 | Y31: 124825 Q | Z31: Virement bancaire | AA31: 401258963321 | AB31: ECOBANK-CI | AZ31: Trim3-2019
A32: 028 | B32: M. | E32: M | F32: 01/01/1992 | I32: +22545673490 | J32: Célibataire | K32: 0 | M32: 2019-07-01 | Q32: Chauffeur | R32: Général | S32: CDD | T32: A2 | U32: 73480 | V32: 41709 | W32: 1 | X32: 25000 | Z32: Virement bancaire | AZ32: Trim3-2019
A33: 029 | B33: M. | E33: M | F33: 28/06/1981 | I33: +22545673490 | J33: Célibataire | K33: 3 | M33: 2019-07-01 | Q33: Chauffeur | R33: Général | S33: CDD | T33: A2 | U33: 73480 | V33: 35228 | W33: 3 | X33: 25000 | Z33: Virement bancaire | AZ33: Trim3-2019
A34: 030 | B34: M. | E34: M | F34: 02/01/1982 | I34: +22540452312 | J34: Célibataire | K34: 3 | M34: 2019-07-01 | Q34: Chauffeur | R34: Général | S34: CDD | T34: A2 | U34: 73480 | V34: 35228 | W34: 3 | X34: 25000 | Z34: Virement bancaire | AZ34: Trim3-2019
A35: 031 | B35: M. | E35: M | F35: 21/01/1992 | I35: +22570455300 | J35: Célibataire | K35: 1 | M35: 2019-07-01 | Q35: Chauffeur | R35: Général | S35: CDD | T35: A2 | U35: 73480 | V35: 37608 | W35: 2 | X35: 25000 | Z35: Virement bancaire | AZ35: Trim3-2019
A36: 032 | B36: M. | E36: M | F36: 03/06/1985 | I36: +22540451114 | J36: Célibataire | K36: 3 | M36: 2019-07-01 | Q36: Chauffeur | R36: Général | S36: CDD | T36: A2 | U36: 73480 | V36: 35228 | W36: 3 | X36: 25000 | Z36: Virement bancaire | AZ36: Trim3-2019
A37: 033 | B37: M. | E37: M | F37: 1980-01-01 | I37: +22549457818 | J37: Célibataire | K37: 2 | M37: 2019-07-01 | Q37: Chauffeur | R37: Général | S37: CDD | T37: A2 | U37: 73480 | V37: 36276 | W37: 2.5 | X37: 25000 | Z37: Virement bancaire | AZ37: Trim3-2019
A38: 034 | B38: M. | E38: M | F38: 10/01/1985 | I38: +22575452377 | J38: Célibataire | K38: 1 | M38: 2019-07-01 | Q38: Chauffeur | R38: Général | S38: CDD | T38: A2 | U38: 73480 | V38: 37608 | W38: 2 | X38: 25000 | Z38: Virement bancaire | AZ38: Trim3-2019
A39: 035 | B39: M. | E39: M | F39: 1980-01-01 | I39: +22545673490 | J39: Célibataire | K39: 2 | M39: 2019-07-01 | Q39: Chauffeur | R39: Général | S39: CDD | T39: A2 | U39: 73480 | V39: 36276 | W39: 2.5 | X39: 25000 | Z39: Virement bancaire | AZ39: Trim3-2019
A40: 036 | B40: M. | E40: M | F40: 15/06/1986 | I40: +22545673490 | J40: Célibataire | K40: 3 | M40: 2019-07-01 | Q40: Chauffeur | R40: Général | S40: CDD | T40: A2 | U40: 73480 | V40: 35228 | W40: 3 | X40: 25000 | Z40: Virement bancaire | AZ40: Trim3-2019
A41: 037 | B41: M. | E41: M | F41: 20/04/1986 | I41: 0 847356 | J41: Célibataire | K41: 3 | M41: 2019-07-01 | Q41: Chauffeur | R41: Général | S41: CDD | T41: A2 | U41: 73480 | V41: 35228 | W41: 3 | X41: 25000 | Z41: Virement bancaire | AZ41: Trim3-2019
A42: 038 | B42: M. | E42: M | F42: 12 /01/199 | I42: +22540452312 | J42: Célibataire | K42: 0 | M42: 2019-07-01 | Q42: Chauffeur | R42: Général | S42: CDD | T42: A2 | U42: 73480 | V42: 41709 | W42: 1 | X42: 25000 | Z42: Virement bancaire | AZ42: Trim3-2019
A43: 039 | B43: M. | E43: M | F43: 01/01/1982 | I43: +22570455300 | J43: Célibataire | K43: 1 | M43: 2019-07-01 | Q43: Chauffeur | R43: Général | S43: CDD | T43: A2 | U43: 73480 | V43: 37608 | W43: 2 | X43: 25000 | Z43: Virement bancaire | AZ43: Trim3-2019
A44: 040 | B44: M. | E44: M | F44: 1978-01-01 | I44: +22540451114 | J44: Célibataire | K44: 4 | M44: 2019-07-01 | Q44: Chauffeur | R44: Général | S44: CDD | T44: A2 | U44: 73480 | V44: 35228 | W44: 3.5 | X44: 25000 | Z44: Virement bancaire | AZ44: Trim3-2019
A45: 041 | B45: M. | E45: M | F45: 02/06/1986 | I45: +22549457818 | J45: Célibataire | K45: 2 | M45: 2019-07-01 | Q45: Chauffeur | R45: Général | S45: CDD | T45: A2 | U45: 73480 | V45: 36276 | W45: 2.5 | X45: 25000 | Z45: Virement bancaire | AZ45: Trim3-2019
A46: 042 | B46: M. | E46: M | F46: 02/11/1975 | I46: +22575452377 | J46: Célibataire | K46: 5 | M46: 2019-07-01 | Q46: Chauffeur | R46: Général | S46: CDD | T46: A2 | U46: 73480 | V46: 35228 | W46: 4 | X46: 25000 | Z46: Virement bancaire | AZ46: Trim3-2019
A47: 043 | B47: M. | E47: M | F47: 01/01/1980 | I47: +22545673490 | J47: Célibataire | K47: 3 | M47: 2019-07-01 | Q47: Chauffeur | R47: Général | S47: CDD | T47: A2 | U47: 73480 | V47: 35228 | W47: 3 | X47: 25000 | Z47: Virement bancaire | AZ47: Trim3-2019
A48: 044 | B48: M. | E48: M | F48: 01/01/1981 | I48: +22545673490 | J48: Célibataire | K48: 5 | M48: 2019-07-01 | Q48: Chauffeur | R48: Général | S48: CDD | T48: A2 | U48: 73480 | V48: 35228 | W48: 4 | X48: 25000 | Z48: Virement bancaire | AZ48: Trim3-2019
A49: 045 | B49: M. | E49: M | F49: 03/06/1991 | I49: +22545673490 | J49: Célibataire | K49: 1 | M49: 2019-07-01 | Q49: Chauffeur | R49: Général | S49: CDD | T49: A2 | U49: 73480 | V49: 37608 | W49: 2 | X49: 25000 | Z49: Virement bancaire | AZ49: Trim3-2019
A50: 046 | B50: M. | E50: M | F50: 1988-12-25 | I50: +22545673490 | J50: Célibataire | K50: 2 | M50: 2019-07-01 | Q50: Chauffeur | R50: Général | S50: CDD | T50: A2 | U50: 73480 | V50: 36276 | W50: 2.5 | X50: 25000 | Z50: Virement bancaire | AZ50: Trim3-2019
A51: 047 | B51: M. | E51: M | F51: 10/08/1990 | I51: +22545673490 | J51: Célibataire | K51: 2 | M51: 2019-07-01 | Q51: Chauffeur | R51: Général | S51: CDD | T51: A2 | U51: 73480 | V51: 36276 | W51: 2.5 | X51: 25000 | Z51: Virement bancaire | AZ51: Trim3-2019
A52: 048 | B52: M. | E52: M | F52: 10/05/1994 | I52: +22540452312 | J52: Célibataire | K52: 0 | M52: 2019-07-01 | Q52: Chauffeur | R52: Général | S52: CDD | T52: A2 | U52: 73480 | V52: 41709 | W52: 1 | X52: 25000 | Z52: Virement bancaire | AZ52: Trim3-2019
A53: 049 | B53: M. | E53: M | F53: 01/01/1976 | I53: +22570455300 | J53: Célibataire | K53: 4 | M53: 2019-07-01 | Q53: Chauffeur | R53: Général | S53: CDD | T53: A2 | U53: 73480 | V53: 35228 | W53: 3.5 | X53: 25000 | Z53: Virement bancaire | AZ53: Trim3-2019
A54: 050 | B54: M. | E54: M | F54: 10/10/1986 | I54: +22540451114 | J54: Célibataire | K54: 0 | M54: 2019-07-01 | Q54: Chauffeur | R54: Général | S54: CDD | T54: A2 | U54: 73480 | V54: 41709 | W54: 1 | X54: 25000 | Z54: Virement bancaire | AZ54: Trim3-2019
A55: 051 | B55: M. | E55: M | F55: 20/11/1984 | G55: Ivoirienne | H55: 08 BP 857 abidjan 08 | I55: 58635223 | J55: Célibataire | K55: 0 | L55: 0 | M55: 02/02/2015 | P55: Suivi Evaluation | Q55: M&E Senior | R55: Général | S55: CDI | T55: A9 | U55: 1600000 | V55: 100000 | W55: 1,5 | X55: 30000 | Y55: 854627 Q | Z55: Virement bancaire | AA55: 321548796548 | AB55: BNI | AZ55: Trim1-2015
A56: 052 | B56: Mme | E56: F | F56: 18/12/1968 | G56: Béninoise | H56: 05 BP 225 Abidjan 05 | I56: 76524863 | J56: Marié(e) | K56: 2 | L56: 0 | M56: 05/04/2005 | P56: PROJET | Q56: Directrice | R56: Expatrié | S56: CDI | T56: A10 | U56: 2500000 | V56: 500000 | W56: 2 | X56: 35000 | Y56: 758421 Q | Z56: Virement bancaire | AA56: 4127854854 | AB56: ECOBANK-CI | AZ56: Trim2-2005
A57: 053 | W57: =IF(K57>0,IF(+OR(J57="Célibataire",J57="Divorcé(e)"),+IF(L57=0,+IF(K57<>0,1.5,1),+IF(1.5+L57*0.5>5,5,1.5+L57*0.5)),+IF(J57="Marié(e)",+IF(L57=0,2,+IF((2+0.5*L57)>5,5,(2+0.5*L57))),+IF(J57="Veuf(ve)",+IF(L57=0,+IF(K57<>0,1.5,1),+IF((2+L57*0.5)>5,5,(2+L57*0.5))),1+0.5*L57))),"") ->  | AZ57: -1900
A58: 054 | AZ58: -1900
A59: 055 | AZ59: -1900
A60: 056 | AZ60: -1900
A61: 057 | AZ61: -1900
A62: 058 | AZ62: -1900
A63: 059 | AZ63: -1900
A64: 060 | AZ64: -1900
A65: 061 | AZ65: -1900
A66: 062 | AZ66: -1900
A67: 063 | AZ67: -1900
A68: 064 | AZ68: -1900
A69: 065 | AZ69: -1900
A70: 066 | AZ70: =IF(M70="","","Trim"&INT((MONTH(M70)-1)/3)+1)&"-"&YEAR(M70) -> -1900
A71: 067 | AZ71: -1900
A72: 068 | AZ72: -1900
A73: 069 | AZ73: -1900
A74: 070 | AZ74: -1900
A75: 071 | AZ75: -1900
A76: 072 | AZ76: -1900
A77: 073 | AZ77: -1900
A78: 074 | AZ78: -1900
A79: 075 | AZ79: -1900
A80: 076 | AZ80: -1900
A81: 077 | AZ81: -1900
A82: 078 | AZ82: -1900
A83: 079 | AZ83: -1900
A84: 080 | AZ84: -1900
A85: 081 | AZ85: -1900
A86: 082 | AZ86: -1900
A87: 083 | AZ87: -1900
A88: 084 | AZ88: -1900
A89: 085 | AZ89: -1900
A90: 086 | AZ90: -1900
A91: 087 | AZ91: -1900
A92: 088 | AZ92: -1900
A93: 089 | AZ93: -1900
A94: 090 | AZ94: -1900
A95: 091 | AZ95: -1900
A96: 092 | AZ96: -1900
A97: 093 | AZ97: -1900
A98: 094 | AZ98: -1900
A99: 095 | AZ99: -1900
A100: 096 | AZ100: -1900
A101: 097 | AZ101: -1900
A102: 098 | AZ102: -1900
A103: 099 | AZ103: -1900
A104: 100
A105: 101
A106: 102
A107: 103
A108: 104
A109: 105
A110: 106
A111: 107
A112: 108
A113: 109
A114: 110
A115: 111
A116: 112
A117: 113
A118: 114
A119: 115
A120: 116
A121: 117
A122: 118
A123: 119
A124: 120
A125: 121
A126: 122
A127: 123
A128: 124
A129: 125
A130: 126
A131: 127
A132: 128
A133: 129
A134: 130
A135: 131
A136: 132
A137: 133
A138: 134
A139: 135
A140: 136
A141: 137
A142: 138
A143: 139
A144: 140
A145: 141

Sheet LIVRE DE PAIE
H2: LIVRE DE PAIE
AI3: =SUM($AI$5:$AI$100) -> 5841346.98
A4: Date de Paie | B4: Période de Paie | C4: Matricule | D4: Nom & Prénoms de l'employé | E4: Poste Occupé/Fonction | F4: Ancienneté | G4: Salaires de base | H4: Sursalaire | I4: Prime d'ancienneté | J4: Prime transport imposable | K4: Gratification | L4: Congés Payés | M4: Avantag en Nature | N4: BRUT IMPOSABLE | O4: Cotisation Rétraite Salarié | P4: IGR Mensuel | Q4: ITS Salarié | R4: Contribution Nationale | S4: ITS Employeur | T4: CNPS Retraite Employeur | U4: CNPS AT | V4: CNPS PF | W4: Assurance Maternité | X4: FDFP, Form.Prof.Continue | Y4: FDFP Taxe d'apprentissage | Z4: Retenues pour Gratif | AA4: Retenues pour Indem.Licenciement | AB4: Prime de transport non imposable | AC4: Indemnité de vehicule | AD4: Retenue Assurance Santé | AE4: Prêts et Autres Retenues | AF4: TOTAL GAINS | AG4: Totale Retenues Salarié | AH4: Totale Retenue Patronale | AI4: NET A PAYER | AZ4: Critère Vérifiaction
A5: 2019-09-21 | B5: 2019-07-01 | C5: 001 | D5: M. BAKOFYEYA INNOCENE | E5: Chauffeur | F5: 0 an 1 mois | G5: 73480 | H5: 35228 | I5: 0 | J5: 0 | K5: 0 | L5: 0 | M5: 0 | N5: =SUM(G5:M5) -> 108708 | O5: 6848.604 | P5: 0 | Q5: 1304.496 | R5: 554.496 | S5: 1304.496 | T5: 8370.516 | U5: 3500 | V5: 3500 | W5: 525 | X5: 652.248 | Y5: 434.832 | Z5: 6794.25 | AA5: 2717.7 | AB5: 25000 | AC5: 0 | AD5: 0 | AE5: 0 | AF5: =N5+AB5 -> 133708 | AG5: =O5+P5+Q5+R5+AD5+AE5 -> 8707.596 | AH5: =S5+T5+U5+V5+W5+X5+Y5+Z5 -> 25081.342 | AI5: =AF5-AG5 -> 125000.404 | AJ5: =IF(B5="","","Trim"&TEXT(1+INT((MONTH(B5)-1)/3),"#")&"-"&TEXT(YEAR(B5),"####")) -> Trim3-2019 | AK5: =PROPER(EnTexte(AI5))&" "&"Francs"&" "&"CFA" ->  | AZ5: =C5&TEXT(B5,"mmmm")&YEAR(B5) -> 001juillet2019
A6: 2019-09-21 | B6: 2019-07-01 | C6: 002 | D6: M. BAMBA DAOFDA | E6: Chauffeur | F6: 0 an 1 mois | G6: 73480 | H6: 35228 | I6: 0 | J6: 0 | K6: 0 | L6: 0 | M6: 0 | N6: =SUM(G6:M6) -> 108708 | O6: 6848.604 | P6: 0 | Q6: 1304.496 | R6: 554.496 | S6: 1304.496 | T6: 8370.516 | U6: 3500 | V6: 3500 | W6: 525 | X6: 652.248 | Y6: 434.832 | Z6: 6794.25 | AA6: 2717.7 | AB6: 25000 | AC6: 0 | AD6: 0 | AE6: 0 | AF6: =N6+AB6 -> 133708 | AG6: =O6+P6+Q6+R6+AD6+AE6 -> 8707.596 | AH6: =S6+T6+U6+V6+W6+X6+Y6+Z6 -> 25081.342 | AI6: =AF6-AG6 -> 125000.404 | AJ6: =IF(B6="","","Trim"&TEXT(1+INT((MONTH(B6)-1)/3),"#")&"-"&TEXT(YEAR(B6),"####")) -> Trim3-2019 | AK6: =PROPER(EnTexte(AI6))&" "&"Francs"&" "&"CFA" ->  | AT6: AFRILAND FIRST BANK | AZ6: =C6&TEXT(B6,"mmmm")&YEAR(B6) -> 002juillet2019
A7: 2019-09-22 | B7: 2019-07-01 | C7: 003 | D7: M. BANDA OFMAROF | E7: Chauffeur | G7: 73480 | H7: 35228 | I7: 0 | J7: 0 | K7: 0 | L7: 0 | M7: 0 | N7: 108708 | O7: 6848.604 | P7: 0 | Q7: 1304.496 | R7: 554.496 | S7: 1304.496 | T7: 8370.516 | U7: 3500 | V7: 3500 | W7: 525 | X7: 652.248 | Y7: 434.832 | Z7: 6794.25 | AA7: 2717.7 | AB7: 25000 | AC7: 0 | AD7: 0 | AE7: 0 | AF7: 133708 | AG7: 8707.596 | AH7: 25081.342 | AI7: 125000.404 | AJ7: Trim3-2019 | AZ7: 003juillet2019
A8: 2019-09-22 | B8: 2019-07-01 | C8: 004 | D8: M. CAMARA ABDOFLAYE | E8: Chauffeur | F8: 0 an 1 mois | G8: 73480 | H8: 35228 | I8: 0 | J8: 0 | K8: 0 | L8: 0 | M8: 0 | N8: 108708 | O8: 6848.604 | P8: 0 | Q8: 1304.496 | R8: 554.496 | S8: 1304.496 | T8: 8370.516 | U8: 3500 | V8: 3500 | W8: 525 | X8: 652.248 | Y8: 434.832 | Z8: 6794.25 | AA8: 2717.7 | AB8: 25000 | AC8: 0 | AD8: 0 | AE8: 0 | AF8: 133708 | AG8: 8707.596 | AH8: 25081.342 | AI8: 125000.404 | AJ8: Trim3-2019 | AZ8: 004juillet2019
A9: 2019-09-22 | B9: 2019-07-01 | C9: 005 | D9: M. CISSE AYOFBA | E9: Chauffeur | F9: 0 an 1 mois | G9: 73480 | H9: 41709 | I9: 0 | J9: 0 | K9: 0 | L9: 0 | M9: 0 | N9: 115189 | O9: 7256.907 | P9: 5917.412748 | Q9: 1382.268 | R9: 632.268 | S9: 1382.268 | T9: 8869.553 | U9: 3500 | V9: 3500 | W9: 525 | X9: 691.134 | Y9: 460.756 | Z9: 7199.3125 | AA9: 2879.725 | AB9: 25000 | AC9: 0 | AD9: 0 | AE9: 0 | AF9: 140189 | AG9: 15188.85575 | AH9: 26128.0235 | AI9: 125000.1443 | AJ9: Trim3-2019 | AZ9: 005juillet2019
A10: 2019-09-22 | B10: 2019-07-01 | C10: 006 | D10: M. COFLIBALY BAKARY | E10: Chauffeur | F10: 0 an 1 mois | G10: 73480 | H10: 37608 | I10: 0 | J10: 0 | K10: 0 | L10: 0 | M10: 0 | N10: 111088 | O10: 6998.544 | P10: 2173.194982 | Q10: 1333.056 | R10: 583.056 | S10: 1333.056 | T10: 8553.776 | U10: 3500 | V10: 3500 | W10: 525 | X10: 666.528 | Y10: 444.352 | Z10: 6943 | AA10: 2777.2 | AB10: 25000 | AC10: 0 | AD10: 0 | AE10: 0 | AF10: 136088 | AG10: 11087.85098 | AH10: 25465.712 | AI10: 125000.149 | AJ10: Trim3-2019 | AZ10: 006juillet2019
A11: 2019-09-22 | B11: 2019-07-01 | C11: 007 | D11: M. COFLIBALY KANIGFI | E11: Chauffeur | F11: 0 an 1 mois | G11: 73480 | H11: 41709 | I11: 0 | J11: 0 | K11: 0 | L11: 0 | M11: 0 | N11: 115189 | O11: 7256.907 | P11: 5917.412748 | Q11: 1382.268 | R11: 632.268 | S11: 1382.268 | T11: 8869.553 | U11: 3500 | V11: 3500 | W11: 525 | X11: 691.134 | Y11: 460.756 | Z11: 7199.3125 | AA11: 2879.725 | AB11: 25000 | AC11: 0 | AD11: 0 | AE11: 0 | AF11: 140189 | AG11: 15188.85575 | AH11: 26128.0235 | AI11: 125000.1443 | AJ11: Trim3-2019 | AZ11: 007juillet2019
A12: 2019-09-22 | B12: 2019-07-01 | C12: 008 | D12: M. COFLIBALY KARIM | E12: Chauffeur | F12: 0 an 1 mois | G12: 73480 | H12: 35228 | I12: 0 | J12: 0 | K12: 0 | L12: 0 | M12: 0 | N12: 108708 | O12: 6848.604 | P12: 0 | Q12: 1304.496 | R12: 554.496 | S12: 1304.496 | T12: 8370.516 | U12: 3500 | V12: 3500 | W12: 525 | X12: 652.248 | Y12: 434.832 | Z12: 6794.25 | AA12: 2717.7 | AB12: 25000 | AC12: 0 | AD12: 0 | AE12: 0 | AF12: 133708 | AG12: 8707.596 | AH12: 25081.342 | AI12: 125000.404 | AJ12: Trim3-2019 | AZ12: 008juillet2019
A13: 2019-09-22 | B13: 2019-07-01 | C13: 009 | D13: M. DIALLO BRAHIMA | E13: Chauffeur | F13: 0 an 1 mois | G13: 73480 | H13: 36276 | I13: 0 | J13: 0 | K13: 0 | L13: 0 | M13: 0 | N13: 109756 | O13: 6914.628 | P13: 956.8234182 | Q13: 1317.072 | R13: 567.072 | S13: 1317.072 | T13: 8451.212 | U13: 3500 | V13: 3500 | W13: 525 | X13: 658.536 | Y13: 439.024 | Z13: 6859.75 | AA13: 2743.9 | AB13: 25000 | AC13: 0 | AD13: 0 | AE13: 0 | AF13: 134756 | AG13: 9755.595418 | AH13: 25250.594 | AI13: 125000.4046 | AJ13: Trim3-2019 | AZ13: 009juillet2019
A14: 2019-09-22 | B14: 2019-07-01 | C14: 010 | D14: M. DIARRA LACINA | E14: Chauffeur | F14: 0 an 1 mois | G14: 73480 | H14: 35228 | I14: 0 | J14: 0 | K14: 0 | L14: 0 | M14: 0 | N14: 108708 | O14: 6848.604 | P14: 0 | Q14: 1304.496 | R14: 554.496 | S14: 1304.496 | T14: 8370.516 | U14: 3500 | V14: 3500 | W14: 525 | X14: 652.248 | Y14: 434.832 | Z14: 6794.25 | AA14: 2717.7 | AB14: 25000 | AC14: 0 | AD14: 0 | AE14: 0 | AF14: 133708 | AG14: 8707.596 | AH14: 25081.342 | AI14: 125000.404 | AJ14: Trim3-2019 | AZ14: 010juillet2019
A15: 2019-09-22 | B15: 2019-07-01 | C15: 012 | D15: M. FAYAMA MEDIBAYE | E15: Chauffeur | F15: 0 an 1 mois | G15: 73480 | H15: 41709 | I15: 0 | J15: 0 | K15: 0 | L15: 0 | M15: 0 | N15: 115189 | O15: 7256.907 | P15: 5917.412748 | Q15: 1382.268 | R15: 632.268 | S15: 1382.268 | T15: 8869.553 | U15: 3500 | V15: 3500 | W15: 525 | X15: 691.134 | Y15: 460.756 | Z15: 7199.3125 | AA15: 2879.725 | AB15: 25000 | AC15: 0 | AD15: 0 | AE15: 0 | AF15: 140189 | AG15: 15188.85575 | AH15: 26128.0235 | AI15: 125000.1443 | AJ15: Trim3-2019 | AZ15: 012juillet2019
A16: 2019-09-22 | B16: 2019-07-01 | C16: 013 | D16: M. HEMA EIAKOFBE | E16: Chauffeur | F16: 0 an 1 mois | G16: 73480 | H16: 36276 | I16: 0 | J16: 0 | K16: 0 | L16: 0 | M16: 0 | N16: 109756 | O16: 6914.628 | P16: 956.8234182 | Q16: 1317.072 | R16: 567.072 | S16: 1317.072 | T16: 8451.212 | U16: 3500 | V16: 3500 | W16: 525 | X16: 658.536 | Y16: 439.024 | Z16: 6859.75 | AA16: 2743.9 | AB16: 25000 | AC16: 0 | AD16: 0 | AE16: 0 | AF16: 134756 | AG16: 9755.595418 | AH16: 25250.594 | AI16: 125000.4046 | AJ16: Trim3-2019 | AZ16: 013juillet2019
A17: 2019-09-22 | B17: 2019-07-01 | C17: 014 | D17: M. KANAZOE ZAKARIA | E17: Chauffeur | F17: 0 an 1 mois | G17: 73480 | H17: 36276 | I17: 0 | J17: 0 | K17: 0 | L17: 0 | M17: 0 | N17: 109756 | O17: 6914.628 | P17: 956.8234182 | Q17: 1317.072 | R17: 567.072 | S17: 1317.072 | T17: 8451.212 | U17: 3500 | V17: 3500 | W17: 525 | X17: 658.536 | Y17: 439.024 | Z17: 6859.75 | AA17: 2743.9 | AB17: 25000 | AC17: 0 | AD17: 0 | AE17: 0 | AF17: 134756 | AG17: 9755.595418 | AH17: 25250.594 | AI17: 125000.4046 | AJ17: Trim3-2019 | AZ17: 014juillet2019
A18: 2019-09-22 | B18: 2019-07-01 | C18: 011 | D18: M. DIAWARA ISSA | E18: Chauffeur | F18: 0 an 1 mois | G18: 73480 | H18: 35228 | I18: 0 | J18: 0 | K18: 0 | L18: 0 | M18: 0 | N18: 108708 | O18: 6848.604 | P18: 0 | Q18: 1304.496 | R18: 554.496 | S18: 1304.496 | T18: 8370.516 | U18: 3500 | V18: 3500 | W18: 525 | X18: 652.248 | Y18: 434.832 | Z18: 6794.25 | AA18: 2717.7 | AB18: 25000 | AC18: 0 | AD18: 0 | AE18: 0 | AF18: 133708 | AG18: 8707.596 | AH18: 25081.342 | AI18: 125000.404 | AJ18: Trim3-2019 | AZ18: 011juillet2019
A19: 2019-09-22 | B19: 2019-07-01 | C19: 015 | D19: M. KARAMOGO ZOFMANA | E19: Chauffeur | F19: 0 an 1 mois | G19: 73480 | H19: 35228 | I19: 0 | J19: 0 | K19: 0 | L19: 0 | M19: 0 | N19: 108708 | O19: 6848.604 | P19: 0 | Q19: 1304.496 | R19: 554.496 | S19: 1304.496 | T19: 8370.516 | U19: 3500 | V19: 3500 | W19: 525 | X19: 652.248 | Y19: 434.832 | Z19: 6794.25 | AA19: 2717.7 | AB19: 25000 | AC19: 0 | AD19: 0 | AE19: 0 | AF19: 133708 | AG19: 8707.596 | AH19: 25081.342 | AI19: 125000.404 | AJ19: Trim3-2019 | AZ19: 015juillet2019
A20: 2019-09-22 | B20: 2019-07-01 | C20: 016 | D20: M. KEIEA OFSMANE | E20: Chauffeur | F20: 0 an 1 mois | G20: 73480 | H20: 35228 | I20: 0 | J20: 0 | K20: 0 | L20: 0 | M20: 0 | N20: 108708 | O20: 6848.604 | P20: 0 | Q20: 1304.496 | R20: 554.496 | S20: 1304.496 | T20: 8370.516 | U20: 3500 | V20: 3500 | W20: 525 | X20: 652.248 | Y20: 434.832 | Z20: 6794.25 | AA20: 2717.7 | AB20: 25000 | AC20: 0 | AD20: 0 | AE20: 0 | AF20: 133708 | AG20: 8707.596 | AH20: 25081.342 | AI20: 125000.404 | AJ20: Trim3-2019 | AZ20: 016juillet2019
A21: 2019-09-22 | B21: 2019-07-01 | C21: 017 | D21: M. NIKIAMA ISSIAKA | E21: Chauffeur | F21: 0 an 1 mois | G21: 73480 | H21: 36276 | I21: 0 | J21: 0 | K21: 0 | L21: 0 | M21: 0 | N21: 109756 | O21: 6914.628 | P21: 956.8234182 | Q21: 1317.072 | R21: 567.072 | S21: 1317.072 | T21: 8451.212 | U21: 3500 | V21: 3500 | W21: 525 | X21: 658.536 | Y21: 439.024 | Z21: 6859.75 | AA21: 2743.9 | AB21: 25000 | AC21: 0 | AD21: 0 | AE21: 0 | AF21: 134756 | AG21: 9755.595418 | AH21: 25250.594 | AI21: 125000.4046 | AJ21: Trim3-2019 | AZ21: 017juillet2019
A22: 2019-09-22 | B22: 2019-07-01 | C22: 018 | D22: M. KIMA YAYA | E22: Chauffeur | F22: 0 an 1 mois | G22: 73480 | H22: 41709 | I22: 0 | J22: 0 | K22: 0 | L22: 0 | M22: 0 | N22: 115189 | O22: 7256.907 | P22: 5917.412748 | Q22: 1382.268 | R22: 632.268 | S22: 1382.268 | T22: 8869.553 | U22: 3500 | V22: 3500 | W22: 525 | X22: 691.134 | Y22: 460.756 | Z22: 7199.3125 | AA22: 2879.725 | AB22: 25000 | AC22: 0 | AD22: 0 | AE22: 0 | AF22: 140189 | AG22: 15188.85575 | AH22: 26128.0235 | AI22: 125000.1443 | AJ22: Trim3-2019 | AZ22: 018juillet2019
A23: 2019-09-25 | B23: 2019-07-01 | C23: 019 | D23: M. KONAEE BANGALI | E23: Chauffeur | F23: 0 an 1 mois | G23: 73480 | H23: 37608 | I23: 0 | J23: 0 | K23: 0 | L23: 0 | M23: 0 | N23: 111088 | O23: 6999 | P23: 2173 | Q23: 1333 | R23: 583 | S23: 1333 | T23: 8554 | U23: 3500 | V23: 3500 | W23: 525 | X23: 667 | Y23: 444 | Z23: 6943 | AA23: 2777 | AB23: 25000 | AC23: 0 | AD23: 0 | AE23: 0 | AF23: 136088 | AG23: 11088 | AH23: 25466 | AI23: 125000 | AJ23: Trim3-2019 | AZ23: 019juillet2019
A24: 2019-09-25 | B24: 2019-07-01 | C24: 052 | D24: Mme EKOUEVIE néé Fassinou Patricia | E24: Directrice | G24: 2500000 | H24: 500000 | I24: 50000 | J24: 10000 | K24: 0 | L24: 0 | M24: 30000 | N24: 3090000 | O24: 194670 | P24: 504947 | Q24: 37080 | R24: 231900 | S24: 37080 | T24: 237930 | U24: 3500 | V24: 3500 | W24: 525 | X24: 18540 | Y24: 12360 | Z24: 193125 | AA24: 77250 | AB24: 25000 | AC24: 100000 | AD24: 15000 | AE24: 0 | AF24: 3115000 | AG24: 983597 | AH24: 506560 | AI24: 2131403 | AJ24: Trim3-2019 | AZ24: 052juillet2019
A25: 2019-09-25 | B25: 2019-08-01 | C25: 051 | D25: M. KONE Datolo Hili | E25: M&E Senior | G25: 1600000 | H25: 100000 | I25: 0 | J25: 5000 | K25: 0 | L25: 0 | M25: 10000 | N25: 1715000 | O25: 108045 | P25: 258067 | Q25: 20580 | R25: 121900 | S25: 20580 | T25: 132055 | U25: 3500 | V25: 3500 | W25: 525 | X25: 10290 | Y25: 6860 | Z25: 107188 | AA25: 42875 | AB25: 25000 | AC25: 50000 | AD25: 15000 | AE25: 0 | AF25: 1740000 | AG25: 523592 | AH25: 284498 | AI25: 1216408 | AJ25: Trim3-2019 | AZ25: 051août2019
A26: 2019-09-25 | B26: 2019-07-01 | C26: 020 | D26: M. KONAEE FOFSSENI | E26: Chauffeur | F26: 0 an 1 mois | G26: 73480 | H26: 37608 | I26: 0 | J26: 0 | K26: 0 | L26: 0 | M26: 10000 | N26: 121088 | O26: 7629 | P26: 2773 | Q26: 1453 | R26: 703 | S26: 1453 | T26: 9324 | U26: 3500 | V26: 3500 | W26: 525 | X26: 727 | Y26: 484 | Z26: 7568 | AA26: 3027 | AB26: 25000 | AC26: 50000 | AD26: 15000 | AE26: 0 | AF26: 146088 | AG26: 27558 | AH26: 27081 | AI26: 118530 | AJ26: Trim3-2019 | AZ26: 020juillet2019
N27: 0 | AF27: 0 | AG27: 0 | AH27: 0 | AI27: 0 | AZ27: janvier1900
N28: 0 | AF28: 0 | AG28: 0 | AH28: 0 | AI28: 0 | AZ28: janvier1900
N29: 0 | AF29: 0 | AG29: 0 | AH29: 0 | AI29: 0 | AZ29: janvier1900
N30: 0 | AF30: 0 | AG30: 0 | AH30: 0 | AI30: 0 | AZ30: janvier1900
N31: 0 | AF31: 0 | AG31: 0 | AH31: 0 | AI31: 0 | AZ31: janvier1900
N32: 0 | AF32: 0 | AG32: 0 | AH32: 0 | AI32: 0 | AZ32: janvier1900
N33: 0 | AF33: 0 | AG33: 0 | AH33: 0 | AI33: 0 | AZ33: janvier1900
N34: 0 | AF34: 0 | AG34: 0 | AH34: 0 | AI34: 0 | AZ34: janvier1900
N35: 0 | AF35: 0 | AG35: 0 | AH35: 0 | AI35: 0 | AZ35: janvier1900
N36: 0 | AF36: 0 | AG36: 0 | AH36: 0 | AI36: 0 | AZ36: janvier1900
N37: 0 | AF37: 0 | AG37: 0 | AH37: 0 | AI37: 0 | AZ37: janvier1900
N38: 0 | AF38: 0 | AG38: 0 | AH38: 0 | AI38: 0 | AZ38: janvier1900
N39: 0 | AF39: 0 | AG39: 0 | AH39: 0 | AI39: 0 | AZ39: janvier1900
N40: 0 | AF40: 0 | AG40: 0 | AH40: 0 | AI40: 0 | AZ40: janvier1900
N41: 0 | AF41: 0 | AG41: 0 | AH41: 0 | AI41: 0 | AZ41: janvier1900
N42: 0 | AF42: 0 | AG42: 0 | AH42: 0 | AI42: 0 | AZ42: janvier1900
N43: 0 | AF43: 0 | AG43: 0 | AH43: 0 | AI43: 0 | AZ43: janvier1900
N44: 0 | AF44: 0 | AG44: 0 | AH44: 0 | AI44: 0 | AZ44: janvier1900
N45: 0 | AF45: 0 | AG45: 0 | AH45: 0 | AI45: 0 | AZ45: janvier1900
C67: © Copyright 2013 LOGIPAIE v50.1, Eric KOUASSI, tous droits réservés

Sheet Paie Synthèse
D4: Du | E4: 2019-01-01 | F4: Au | G4: 2019-12-31
D8: Part salariale | F8: Part patronale | H8: Total
C9: ITS | E9: =SUMPRODUCT(('LIVRE DE PAIE'!$A:$A>=$E$4)*('LIVRE DE PAIE'!$A:$A<=$G$4),'LIVRE DE PAIE'!Q:Q) -> 84316.88 | G9: =SUMPRODUCT(('LIVRE DE PAIE'!$A:$A>=$E$4)*('LIVRE DE PAIE'!$A:$A<=$G$4),'LIVRE DE PAIE'!S:S) -> 84316.88 | H9: =SUM(E9:G9) -> 168633.76
C10: CN | E10: =SUMPRODUCT(('LIVRE DE PAIE'!$A:$A>=$E$4)*('LIVRE DE PAIE'!$A:$A<=$G$4),'LIVRE DE PAIE'!R:R) -> 365456.88 | H10: =SUM(E10:G10) -> 365456.88
C11: IGR | E11: =SUMPRODUCT(('LIVRE DE PAIE'!$A:$A>=$E$4)*('LIVRE DE PAIE'!$A:$A<=$G$4),'LIVRE DE PAIE'!P:P) -> 797630.1396 | H11: =SUM(E11:G11) -> 797630.1396
C12: CE Local | H12: =SUM(E12:G12) -> 0
C13: CE Expatrié | H13: =SUM(E13:G13) -> 0
C14: Total Impots sur salaires | E14: =SUM(E9:E13) -> 1247403.9 | G14: =SUM(G9:G13) -> 84316.88 | H14: =SUM(H9:H13) -> 1331720.78
C16: Prestations familiales | G16: =SUMPRODUCT(('LIVRE DE PAIE'!$A:$A>=$E$4)*('LIVRE DE PAIE'!$A:$A<=$G$4),'LIVRE DE PAIE'!U:U) -> 77000 | H16: =SUM(E16:G16) -> 77000
C18: Assurance Maternité | G18: =SUMPRODUCT(('LIVRE DE PAIE'!$A:$A>=$E$4)*('LIVRE DE PAIE'!$A:$A<=$G$4),'LIVRE DE PAIE'!W:W) -> 11550 | H18: =SUM(E18:G18) -> 11550
C20: Accident de travail | G20: =SUMPRODUCT(('LIVRE DE PAIE'!$A:$A>=$E$4)*('LIVRE DE PAIE'!$A:$A<=$G$4),'LIVRE DE PAIE'!U:U) -> 77000 | H20: =SUM(E20:G20) -> 77000
C22: CR | E22: =SUMPRODUCT(('LIVRE DE PAIE'!$A:$A>=$E$4)*('LIVRE DE PAIE'!$A:$A<=$G$4),'LIVRE DE PAIE'!O:O) -> 442665.12 | G22: =SUMPRODUCT(('LIVRE DE PAIE'!$A:$A>=$E$4)*('LIVRE DE PAIE'!$A:$A<=$G$4),'LIVRE DE PAIE'!T:T) -> 541034.48 | H22: =SUM(E22:G22) -> 983699.6
C23: Total Cotisation CNPS | E23: =SUM(E16:E22) -> 442665.12 | G23: =SUM(G16:G22) -> 706584.48 | H23: =SUM(H16:H22) -> 1149249.6
C25: Taxe d'apprentissage | G25: =SUMPRODUCT(('LIVRE DE PAIE'!$A:$A>=$E$4)*('LIVRE DE PAIE'!$A:$A<=$G$4),'LIVRE DE PAIE'!Y:Y) -> 28104.96 | H25: =SUM(E25:G25) -> 28104.96
C27: Taxe FPC | G27: =SUMPRODUCT(('LIVRE DE PAIE'!$A:$A>=$E$4)*('LIVRE DE PAIE'!$A:$A<=$G$4),'LIVRE DE PAIE'!X:X) -> 42159.44 | H27: =SUM(E27:G27) -> 42159.44
C30: Total Taxes FDFP | E30: =SUM(E25:E29) -> 0 | G30: =SUM(G25:G29) -> 70264.4 | H30: =SUM(H25:H29) -> 70264.4
C32: Total Impôts et Cotisations | E32: =SUM(E30,E23,E14) -> 1690069.02 | G32: =SUM(G30,G23,G14) -> 861165.76 | H32: =E32+G32 -> 2551234.78
C35: Brut imposable | D35: =SUMPRODUCT(('LIVRE DE PAIE'!$A:$A>=$E$4)*('LIVRE DE PAIE'!$A:$A<=$G$4),'LIVRE DE PAIE'!N:N) -> 7026416 | F35: Retenue /Assur. | H35: =SUMPRODUCT(('LIVRE DE PAIE'!$A:$A>=$E$4)*('LIVRE DE PAIE'!$A:$A<=$G$4),'LIVRE DE PAIE'!AD:AD) -> 45000
C37: Ind. de transport | D37: =SUMPRODUCT(('LIVRE DE PAIE'!$A:$A>=$E$4)*('LIVRE DE PAIE'!$A:$A<=$G$4),'LIVRE DE PAIE'!AB:AB) -> 550000 | F37: Autres retenues | H37: =SUMPRODUCT(('LIVRE DE PAIE'!$A:$A>=$E$4)*('LIVRE DE PAIE'!$A:$A<=$G$4),'LIVRE DE PAIE'!Z:Z)+SUMPRODUCT(('LIVRE DE PAIE'!$A:$A>=$E$4)*('LIVRE DE PAIE'!$A:$A<=$G$4),'LIVRE DE PAIE'!AA:AA)+SUMPRODUCT(('LIVRE DE PAIE'!$A:$A>=$E$4)*('LIVRE DE PAIE'!$A:$A<=$G$4),'LIVRE DE PAIE'!AE:AE) -> 614811.5
C39: Autres gains | E39: =SUMPRODUCT(('LIVRE DE PAIE'!$A:$A>=$E$4)*('LIVRE DE PAIE'!$A:$A<=$G$4),'LIVRE DE PAIE'!AC:AC) -> 200000 | F39: Net à payer | H39: =SUMPRODUCT(('LIVRE DE PAIE'!$A:$A>=$E$4)*('LIVRE DE PAIE'!$A:$A<=$G$4),'LIVRE DE PAIE'!AI:AI) -> 5841346.98
